[Event "Tirnavia Reti Memorial-IM 2022"]
[Site "Trnava"]
[Date "2022.08.16"]
[Round "7.10"]
[White "Skreko, Igor"]
[Black "Petran, Peter"]
[Result "0-1"]
[ECO "A41"]
[WhiteElo "2193"]
[BlackElo "2234"]
[Annotator "TA"]
[PlyCount "128"]
[EventDate "2022.08.10"]
[EventType "tourn"]
[EventCountry "SVK"]
[SourceTitle "playchess.com"]
[Source "ChessBase"]
[SourceQuality "1"]
[TimeControl "40/5400+30:1800+30"]

{[%evp 17,128,29,29,35,29,25,31,33,35,35,36,29,35,30,41,46,39,0,0,1,13,27,66,62,90,82,112,112,114,115,127,129,131,113,110,110,100,79,95,91,93,89,79,87,90,90,217,66,92,56,76,39,78,62,62,19,18,0,81,26,40,0,0,0,0,0,0,0,0,0,25,0,0,0,8,0,8,8,8,8,8,0,0,8,8,0,86,101,96,0,0,0,0,0,0,0,0,0,0,-102,-81,-306,-281,-334,-339,-5085,-3048,-1653,-1366,-29985,-29986,-29998,-29999]} 1. d4 {[%emt 0:00:03]} g6 {[%emt 0:04:32]} 2. c4 {[%emt 0:00:10]} Bg7 {[%emt 0:00:10]} 3. e4 {[%emt 0:00:34]} Nc6 {[%emt 0:00:06]} 4. Be3 {[%emt 0:09:16]} e5 {[%emt 0:00:06]} 5. Nf3 {[%emt 0:01:13]} d6 {[%emt 0:00:07]} 6. Nc3 {[%emt 0:01:14]} Bg4 {[%emt 0:01:23]} 7. d5 {[%emt 0:03:44]} Nd4 {[%emt 0:01:35]} 8. Be2 {[%emt 0:17:04]} Bxf3 {[%emt 0:00:36]} 9. Bxf3 {[%emt 0:00:29]} c5 $1 {[%emt 0:00:19] 9...c5 is better than 9...Ne7.} 10. dxc6 {[%emt 0:02:12] A41: 1 d4 d6: Tartakower System and Modern Defence.} bxc6 {[%emt 0:00:12]} 11. g3 {[%emt 0:03:11]} Ne7 {[%emt 0:06:15]} 12. Bg2 {[%emt 0:02:10] White is slightly better.} O-O {[%emt 0:00:09]} 13. O-O {[%emt 0:00:09]} Rb8 {[%emt 0:00:36]} 14. Rb1 {[%emt 0:01:36]} c5 {[%emt 0:00:18]} 15. b3 {[%emt 0:08:21] [#]} h6 $146 {[%emt 0:04:09]} ({Predecessor:} 15... Kh8 16. Qd2 Qd7 17. Rbd1 Nec6 {½-½ (17) Kozak,A (2364)-Kantsler,B (2395) Budapest 2016}) 16. Qd2 {[%emt 0:06:09]} Kh7 {[%emt 0:00:17]} 17. Nd5 {[%emt 0:00:39]} Nxd5 {[%emt 0:00:29]} 18. cxd5 {[%emt 0:00:18]} f5 {[%emt 0:00:50][%cal Of5f4]} 19. f4 {[%emt 0:04:05]} Qb6 {[%emt 0:12:01]} 20. fxe5 {[%emt 0:08:07]} dxe5 {[%emt 0:00:22]} 21. Kh1 {[%emt 0:02:52]} fxe4 {[%emt 0:23:24]} 22. Bxe4 {[%emt 0:00:48]} Qd6 {[%emt 0:00:58]} 23. Qd3 {[%emt 0:02:47]} Rxf1+ {[%emt 0:04:16]} 24. Rxf1 {[%emt 0:00:13]} Rf8 {[%emt 0:00:05] Against Rf7} 25. Rc1 {[%emt 0:05:30]} Rf6 {[%emt 0:03:26]} 26. Kg2 {[%emt 0:01:14]} Bf8 {[%emt 0:01:22]} 27. h4 {[%emt 0:02:05] h5 is the strong threat.} Kg7 {[%emt 0:16:21]} 28. Qd2 {[%emt 0:01:45]} h5 {[%emt 0:01:15]} 29. Bh6+ {[%emt 0:01:15]} Kh7 {[%emt 0:05:10]} 30. Bg5 {[%emt 0:00:45] A strong pair of Bishops.} Rf7 {[%emt 0:00:15]} 31. Rc4 {[%emt 0:07:20]} Be7 {[%emt 0:03:44] [#]} (31... Qa6 $16 {was worth a try.}) 32. Be3 $2 {[%emt 0:01:28]} ({Only move:} 32. Bxe7 $1 $18 Qxe7 33. Qg5 Qxg5 34. hxg5) 32... Qf6 {[%emt 0:01:08]} 33. Qd3 {[%emt 0:00:58] Prevents Qf1+.} Kg7 {[%emt 0:01:31]} 34. Rc1 {[%emt 0:01:19]} Bd6 {[%emt 0:04:13]} 35. Qd2 {[%emt 0:02:19]} Bf8 {[%emt 0:01:14]} 36. Bh6+ {[%emt 0:01:01]} Kh7 $1 {[%emt 0:00:36]} 37. Bg5 {[%emt 0:00:05]} (37. Bxf8 $11 Rxf8 38. Kh3) 37... Qd6 $1 $16 {[%emt 0:01:10]} 38. Qd3 {[%emt 0:03:37] Prevents Qa6.} (38. Rf1 $16 Rxf1 39. Kxf1) 38... Bh6 $1 $11 {[%emt 0:01:04]} 39. Rf1 {[%emt 0:01:20]} Rxf1 {[%emt 0:02:05] Chess con chili.} 40. Qxf1 {[%emt 0:00:10] [#] Black must now prevent Qf7+.} Bxg5 {[%emt 0:00:37]} 41. hxg5 {[%emt 0:08:20][%mdl 4096] Endgame White wants to mate with Qf7+. KQB-KQN} Kg7 {[%emt 0:01:55] Inhibits Qf7+.} 42. Qd3 {[%emt 0:02:18]} Qe7 {[%emt 0:04:05]} 43. Qd2 {[%emt 0:04:22]} Qd7 {[%emt 0:02:08]} 44. Qf2 {[%emt 0:01:37]} (44. Qa5 $5 {[%cal Ra5a6]} Nb5 45. Kh2 $14 (45. Qa6 Nd6 $11)) 44... Qd8 {[%emt 0:05:36] Prevents Qf6+.} 45. Qe3 {[%emt 0:02:08]} Qd6 {[%emt 0:00:31]} 46. Qd3 {[%emt 0:02:45]} Qd8 {[%emt 0:03:15]} 47. Qa6 {[%emt 0:04:14]} Qxg5 {[%emt 0:02:26] Threatens to win with ...Qg4.} 48. Qxa7+ {[%emt 0:00:04]} Kh6 {[%emt 0:00:21]} 49. Qxc5 {[%emt 0:04:24] Hoping for Qf8+.} h4 {[%emt 0:13:07]} 50. Qf8+ {[%emt 0:01:25]} Kh7 {[%emt 0:00:03]} 51. Qf2 {[%emt 0:00:35] And now Kh3 would win.} Nf5 {[%emt 0:00:56]} (51... Kg7 $11) 52. Bxf5 $16 {[%emt 0:01:26]} gxf5 {[%emt 0:00:02] KQ-KQ} 53. Kh2 {[%emt 0:00:43]} (53. Qa7+ $16 Kh6 54. Qa6+ Kg7 55. Qb7+ Kg6 56. Qa6+ Kg7 57. Qb7+ Kg6 58. Qc6+ Kh5 59. Qc3 (59. Qe8+ Kg4 $11)) 53... hxg3+ $11 {[%emt 0:02:08]} 54. Qxg3 {[%emt 0:00:01]} Qd2+ {[%emt 0:00:12]} 55. Qg2 {[%emt 0:00:21]} Qd4 {[%emt 0:00:25]} 56. Kg3 {[%emt 0:03:30]} Kg6 {[%emt 0:00:50]} 57. Qf2 {[%emt 0:00:30] Threatening mate with Qxd4.} Qxd5 {[%emt 0:00:46]} 58. Qb6+ {[%emt 0:00:01]} (58. Qg2 $11 Qc5 59. Kh4+ Kf7 60. Qb7+ Ke6 61. b4 Qf2+ 62. Kg5 Qg3+ 63. Kh6) 58... Kg5 {[%emt 0:00:34] Strongly threatening ...f4+.} 59. Qg1 $2 {[%emt 0:00:36]} (59. a4 $17) 59... f4+ $19 {[%emt 0:00:49]} 60. Kh3+ {[%emt 0:00:08]} Kf6 {[%emt 0:00:11] aiming for ...e4.} 61. Kh4 $2 {[%emt 0:00:31]} (61. b4) 61... e4 {[%emt 0:01:38]} 62. Qb6+ {[%emt 0:00:52]} Kf5 {[%emt 0:00:18] ( -> ...e3)} 63. Qh6 {[%emt 0:00:04]} Qd8+ {[%emt 0:00:31]} 64. Kh5 {[%emt 0:00:39]} Qd1+ {[%emt 0:00:08] Weighted Error Value: White=0.52/Black=0.10 (very precise)} 0-1

[Event "Tirnavia Reti Memorial-IM 2022"]
[Site "Trnava"]
[Date "2022.08.17"]
[Round "8.6"]
[White "Papp, Levente"]
[Black "Petran, Peter"]
[Result "1/2-1/2"]
[ECO "A84"]
[WhiteElo "2394"]
[BlackElo "2234"]
[Annotator "TA"]
[PlyCount "73"]
[EventDate "2022.08.10"]
[EventType "tourn"]
[EventCountry "SVK"]
[SourceTitle "playchess.com"]
[Source "ChessBase"]
[SourceQuality "1"]
[TimeControl "40/5400+30:1800+30"]

{[%evp 13,73,57,66,64,66,63,77,25,36,39,40,42,40,28,31,31,21,23,49,37,41,47,44,39,46,31,37,26,44,29,36,27,33,21,38,35,41,22,25,24,48,48,48,44,47,47,47,44,55,37,38,12,12,10,13,8,8,8,8,0,0,0]} 1. d4 {[%emt 0:00:08]} g6 {[%emt 0:00:07]} 2. c4 {[%emt 0:00:06]} f5 {[%emt 0:00:10]} 3. Nf3 {[%emt 0:00:52]} Bg7 {[%emt 0:00:15]} 4. g3 {[%emt 0:00:06]} d6 {[%emt 0:00:09]} 5. Bg2 {[%emt 0:00:13]} c6 {[%emt 0:00:08]} 6. O-O {[%emt 0:00:25]} Nh6 {[%emt 0:00:05]} 7. Nc3 {[%emt 0:04:55]} O-O {[%emt 0:00:29]} 8. e4 {[%emt 0:08:30] A84: Dutch Defence: 2 c4 Miscellaneous.} Nf7 {[%emt 0:00:52]} 9. d5 {[%emt 0:08:20]} e5 {[%emt 0:01:44]} 10. dxe6 {[%emt 0:02:23] White is more active.} (10. exf5 $16 Bxf5 11. Be3) 10... Bxe6 $11 {[%emt 0:00:30]} 11. exf5 {[%emt 0:00:17]} Bxf5 {[%emt 0:01:16]} 12. Be3 {[%emt 0:03:33] [#]} Na6 $146 {[%emt 0:01:24][%cal Bb8a6,Ba6c5,Bc5e6,Be6d4][%mdl 32]} ({Predecessor:} 12... Qc8 13. Re1 Bh3 14. Bd4 Bxg2 15. Kxg2 Nd7 16. Bxg7 Kxg7 17. Ne4 Nde5 {½-½ (17) Moerling,J (1685)-Thaler,T (2075) Helsingor 2012}) 13. Bd4 {[%emt 0:00:59]} Ne5 {[%emt 0:03:49]} 14. Nxe5 {[%emt 0:07:08]} dxe5 {[%emt 0:00:21]} 15. Be3 {[%emt 0:00:04]} Qe7 {[%emt 0:05:31]} 16. Ne4 {[%emt 0:06:27]} Bxe4 {[%emt 0:01:48]} 17. Bxe4 {[%emt 0:00:14]} Nc5 {[%emt 0:00:12]} 18. Qc2 {[%emt 0:10:08]} Ne6 {[%emt 0:03:40]} 19. c5 {[%emt 0:00:25]} Rad8 {[%emt 0:01:40]} 20. b4 {[%emt 0:02:09]} Nd4 {[%emt 0:03:52]} 21. Qc4+ {[%emt 0:01:32]} Qf7 {[%emt 0:02:00]} 22. Rac1 {[%emt 0:01:48]} a6 {[%emt 0:01:34]} 23. a4 {[%emt 0:04:13]} Rd7 {[%emt 0:08:21]} 24. Qxf7+ {[%emt 0:04:18]} Rfxf7 {[%emt 0:02:07]} 25. Rc4 {[%emt 0:09:15]} Nf5 {[%emt 0:02:43]} 26. Bg5 {[%emt 0:01:06]} Rd4 {[%emt 0:04:40]} 27. Rxd4 {[%emt 0:01:28]} Nxd4 {[%emt 0:00:12]} 28. Kg2 {[%emt 0:01:09]} Ne6 {[%emt 0:00:55]} 29. Be3 {[%emt 0:00:45]} Rd7 {[%emt 0:00:26]} 30. h4 {[%emt 0:05:04][%cal Ob4b5]} Bf8 {[%emt 0:02:51]} 31. h5 {[%emt 0:01:42]} Kg7 {[%emt 0:02:51]} 32. Rh1 {[%emt 0:01:54]} a5 {[%emt 0:06:30] The position is equal.} 33. hxg6 {[%emt 0:01:50]} hxg6 {[%emt 0:00:07]} 34. b5 {[%emt 0:12:17]} Bxc5 {[%emt 0:04:29]} 35. bxc6 {[%emt 0:00:26]} bxc6 {[%emt 0:00:08]} 36. Bxc6 {[%emt 0:00:49] This bishop pair is nice.} Rd6 {[%emt 0:01:01]} 37. Bxc5 {[%emt 0:01:27] Weighted Error Value: White=0.07 (flawless) /Black=0.06 (flawless)} 1/2-1/2

[Event "Tirnavia Reti Memorial-IM 2022"]
[Site "Trnava"]
[Date "2022.08.17"]
[Round "8.8"]
[White "Straka, Jozef"]
[Black "Konyves, Almos"]
[Result "1-0"]
[ECO "E52"]
[WhiteElo "2300"]
[BlackElo "2229"]
[Annotator "RC"]
[PlyCount "83"]
[EventDate "2022.08.10"]
[EventType "tourn"]
[EventCountry "SVK"]
[SourceTitle "playchess.com"]
[Source "ChessBase"]
[SourceQuality "1"]
[TimeControl "40/5400+30:1800+30"]

1. d4 {[%emt 0:00:04]} Nf6 {[%emt 0:05:06]} 2. c4 {[%emt 0:00:09]} e6 {[%emt 0:00:15]} 3. Nc3 {[%emt 0:00:06]} Bb4 {[%emt 0:00:05]} 4. e3 {[%emt 0:00:14]} b6 {[%emt 0:00:13]} 5. Bd2 {[%emt 0:01:26]} Bb7 {[%emt 0:06:34]} 6. Nf3 {[%emt 0:00:17]} O-O {[%emt 0:00:34]} 7. Bd3 {[%emt 0:00:07]} d5 {[%emt 0:00:13]} 8. cxd5 {[%emt 0:00:16]} exd5 {[%emt 0:00:05]} 9. Rc1 {[%emt 0:00:19]} a6 {[%emt 0:01:15]} 10. O-O {[%emt 0:00:40]} Nbd7 {[%emt 0:02:21]} 11. Ne5 {[%emt 0:00:18]} Bd6 {[%emt 0:00:33]} 12. f4 {[%emt 0:00:21]} c5 {[%emt 0:01:29]} 13. Qf3 {[%emt 0:03:42]} b5 {[%emt 0:10:32]} 14. Qh3 {[%emt 0:07:13]} Nb6 {[%emt 0:13:11]} 15. Be1 {[%emt 0:19:44]} cxd4 {[%emt 0:02:34]} 16. exd4 {[%emt 0:07:53]} Ne4 {[%emt 0:00:55]} 17. Bh4 {[%emt 0:01:46]} Qe8 {[%emt 0:02:26]} 18. Ng4 {[%emt 0:07:59]} f6 {[%emt 0:03:39]} 19. Ne3 {[%emt 0:05:43]} b4 {[%emt 0:18:14]} 20. Nxe4 {[%emt 0:01:33]} dxe4 {[%emt 0:00:05]} 21. Bc2 {[%emt 0:00:26]} Kh8 {[%emt 0:03:10]} 22. Bb3 {[%emt 0:00:23]} Rc8 {[%emt 0:00:45]} 23. Bg3 {[%emt 0:03:03]} Rxc1 {[%emt 0:07:40]} 24. Rxc1 {[%emt 0:00:07]} Qb8 {[%emt 0:00:17]} 25. Qg4 {[%emt 0:10:19]} Rc8 {[%emt 0:01:47]} 26. Rd1 {[%emt 0:00:43]} Qc7 {[%emt 0:08:48]} 27. Kf2 {[%emt 0:07:43]} a5 {[%emt 0:01:58]} 28. f5 {[%emt 0:02:49]} a4 {[%emt 0:03:35]} 29. Be6 {[%emt 0:00:37]} Rd8 {[%emt 0:00:04]} 30. Rd2 {[%emt 0:04:04]} a3 {[%emt 0:01:34]} 31. bxa3 {[%emt 0:07:42]} Qc3 {[%emt 0:00:59]} 32. Qd1 {[%emt 0:04:05]} Bxg3+ {[%emt 0:02:03]} 33. hxg3 {[%emt 0:00:02]} Nd5 {[%emt 0:03:17]} 34. Bxd5 {[%emt 0:02:27]} Bxd5 {[%emt 0:00:04]} 35. Nxd5 {[%emt 0:02:24]} Rxd5 {[%emt 0:00:40]} 36. Rc2 {[%emt 0:00:30]} Rxf5+ {[%emt 0:00:41]} 37. Ke2 {[%emt 0:00:30]} Qd3+ {[%emt 0:00:07]} 38. Qxd3 {[%emt 0:00:04]} exd3+ {[%emt 0:00:03]} 39. Kxd3 {[%emt 0:00:08]} h5 {[%emt 0:00:08]} 40. axb4 {[%emt 0:00:18]} Rg5 {[%emt 0:00:04]} 41. a4 {[%emt 0:32:10]} Rxg3+ {[%emt 0:30:38]} 42. Kc4 {[%emt 0:00:00]} 1-0

[Event "Tirnavia Reti Memorial-IM 2022"]
[Site "Trnava"]
[Date "2022.08.17"]
[Round "8.10"]
[White "Bures, Jaroslav"]
[Black "Svana, Peter"]
[Result "1-0"]
[ECO "E99"]
[WhiteElo "2416"]
[BlackElo "2280"]
[Annotator "TA"]
[PlyCount "83"]
[EventDate "2022.08.10"]
[EventType "tourn"]
[EventCountry "SVK"]
[SourceTitle "playchess.com"]
[Source "ChessBase"]
[SourceQuality "1"]
[TimeControl "40/5400+30:1800+30"]

{[%evp 27,82,52,97,88,106,93,88,87,95,96,91,100,106,81,93,88,110,113,112,94,129,105,140,118,175,193,154,-12,-12,-245,-258,-236,264,267,270,248,422,412,443,429,409,436,428,85,732,729,709,390,382,375,657,648,1044,1013,29990,29991,29999]} 1. d4 {[%emt 0:00:12]} Nf6 {[%emt 0:00:05]} 2. c4 {[%emt 0:00:03]} g6 {[%emt 0:00:08]} 3. Nc3 {[%emt 0:00:04]} Bg7 {[%emt 0:05:43]} 4. e4 {[%emt 0:00:11]} O-O {[%emt 0:00:08]} 5. Nf3 {[%emt 0:00:02]} d6 {[%emt 0:00:57]} 6. Be2 {[%emt 0:00:01]} e5 {[%emt 0:00:05]} 7. O-O {[%emt 0:02:48]} Nc6 {[%emt 0:00:06]} 8. d5 {[%emt 0:00:29]} Ne7 {[%emt 0:00:11]} 9. Ne1 {[%emt 0:00:01]} Ne8 {[%emt 0:01:19]} 10. Nd3 {[%emt 0:00:01]} f5 {[%emt 0:00:08]} 11. Bd2 {[%emt 0:00:01][%cal Bc1d2,Bd2a5,Ba5e1,Be1f2][%mdl 32]} Nf6 {[%emt 0:00:46]} 12. f3 {[%emt 0:00:02]} f4 {[%emt 0:00:26]} 13. c5 {[%emt 0:00:08]} g5 {[%emt 0:00:31]} 14. Rc1 {[%emt 0:00:02]} h5 {[%emt 0:00:34]} 15. Nb5 {[%emt 0:00:32] E99: King's Indian: Classical Main Line: 9 Ne1 Nd7 10 f3 f5.} Ne8 {[%emt 0:00:37]} 16. Ba5 {[%emt 0:13:33] Hoping for cxd6.} b6 {[%emt 0:00:43]} 17. cxd6 {[%emt 0:00:02] White is better.} cxd6 {[%emt 0:00:20]} 18. Be1 {[%emt 0:00:01] White is much more active.} a6 {[%emt 0:00:35]} 19. Nc3 {[%emt 0:00:23]} Nf6 {[%emt 0:03:35] [#]} 20. Qb3 $146 {[%emt 0:02:53]} ({Predecessor:} 20. Bf2 Nd7 21. Nb4 Ng6 22. Na4 b5 23. Nc6 Qe8 24. Nb6 Nxb6 25. Bxb6 Bf6 26. a4 bxa4 {½-½ (51) Johannesson,I (2346)-Mohr,G (2407) Struga 2021}) 20... Kh8 {[%emt 0:00:59]} 21. Bf2 {[%emt 0:00:25]} b5 {[%emt 0:01:31]} 22. a4 {[%emt 0:00:06][%cal Ba2a4,Ba4b5][%mdl 32]} g4 {[%emt 0:00:10]} 23. axb5 {[%emt 0:00:06]} g3 {[%emt 0:00:09]} 24. hxg3 {[%emt 0:01:25]} fxg3 {[%emt 0:00:09]} 25. Bxg3 {[%emt 0:00:04] f4 is the strong threat.} Bh6 {[%emt 0:00:55]} (25... Ng6 $16 {was necessary.}) 26. f4 $18 {[%emt 0:04:36]} Rg8 {[%emt 0:05:16]} 27. fxe5 $2 {[%emt 0:09:58]} (27. Bh4 $6 Ng6 28. Bg5 (28. Bxf6+ Qxf6 29. Bxh5 Bxf4 $17) 28... Nxf4 29. Bxf4 (29. Bxh6 Nxg2 30. Qb4 Kh7 $17) 29... exf4 $11) ({White should play} 27. Bh2 $16) 27... Rxg3 $11 {[%emt 0:00:44]} 28. Rxf6 $2 {[%emt 0:02:23]} (28. exf6 $11 Ng6 29. Qc4 $1) 28... Be3+ $1 $19 {[%emt 0:01:52]} 29. Kf1 {[%emt 0:03:57][%cal Oe2f3] Black must now prevent Bf3!} Qg8 $4 {[%emt 0:02:00][%mdl 8192]} (29... Ng6 $19 {and all is fine.} 30. Rxg6 (30. Bxh5 $2 Nxe5 31. Rf3 Qh4 $19) (30. Rxd6 $2 Qh4 $19) 30... Qh4) 30. Bf3 $18 {[%emt 0:01:56]} ({Avoid the trap} 30. exd6 $2 {[#]} Rxg2 $1 31. Ke1 Nf5 $1 {[%mdl 512]} 32. Rxf5 (32. exf5 Rg1+ 33. Bf1 Qg2 34. Rf8+ Kg7) 32... Bxf5 $19) 30... Bxc1 {[%emt 0:05:31]} 31. Nxc1 {[%emt 0:00:03]} axb5 {[%emt 0:00:33]} (31... Qg5) 32. N3e2 {[%emt 0:21:42]} (32. Rh6+ Kg7 33. Rxd6 Rg6 $18) 32... Rg6 {[%emt 0:10:42]} 33. Bxh5 {[%emt 0:00:51]} Rxf6+ {[%emt 0:03:40]} 34. exf6 {[%emt 0:00:01]} Ng6 {[%emt 0:00:16]} 35. Nd3 $2 {[%emt 0:02:49]} (35. Qf3 $18 {and White stays clearly on top. Threatens to win with f7.} Ra7 36. Bxg6 Qxg6 37. Qc3) 35... Nh4 $2 {[%emt 0:02:49][%mdl 8192]} (35... Qh7 $16 36. Ng3 b4) 36. Ndf4 {[%emt 0:01:20]} Bg4 {[%emt 0:06:13]} 37. Bxg4 {[%emt 0:00:46]} Qxg4 {[%emt 0:00:08]} 38. Qc3 {[%emt 0:00:02]} Rf8 {[%emt 0:07:18]} (38... Kg8 39. Qc7 Nxg2 40. f7+ (40. Nxg2 Qf3+ 41. Kg1 Qxf6 $18) 40... Kg7 41. Ne6+ (41. Nxg2 Qf3+ 42. Ke1 Qxg2 $14) 41... Kf6) 39. f7+ {[%emt 0:00:23]} Kh7 {[%emt 0:00:12]} 40. Qf6 {[%emt 0:00:05]} Ng6 {[%emt 0:00:35]} 41. Ne6 {[%emt 0:30:40][%csl Ge6][%cal Rf6g7]} Ra8 {[%emt 0:31:05]} 42. Qg7# {[%emt 0:00:11] Weighted Error Value: White=0.69/Black=0.69} 1-0

[Event "Tirnavia Reti Memorial-IM 2022"]
[Site "Trnava"]
[Date "2022.08.18"]
[Round "9.9"]
[White "Skreko, Igor"]
[Black "Straka, Jozef"]
[Result "0-1"]
[ECO "D31"]
[WhiteElo "2193"]
[BlackElo "2300"]
[Annotator "RC"]
[PlyCount "84"]
[EventDate "2022.08.10"]
[EventType "tourn"]
[EventCountry "SVK"]
[SourceTitle "playchess.com"]
[Source "ChessBase"]
[SourceQuality "1"]
[TimeControl "40/5400+30:1800+30"]

1. d4 {[%emt 0:00:06]} d5 {[%emt 0:03:05]} 2. c4 {[%emt 0:00:06]} e6 {[%emt 0:00:12]} 3. Nc3 {[%emt 0:00:05]} Bb4 {[%emt 0:01:18]} 4. Nf3 {[%emt 0:10:01]} dxc4 {[%emt 0:00:58]} 5. Qa4+ {[%emt 0:09:59]} Nc6 {[%emt 0:01:15]} 6. a3 {[%emt 0:00:19]} Bxc3+ {[%emt 0:31:00]} 7. bxc3 {[%emt 0:00:10]} Qd5 {[%emt 0:00:05]} 8. Qc2 {[%emt 0:10:38]} Nf6 {[%emt 0:03:52]} 9. Nd2 {[%emt 0:01:18]} Na5 {[%emt 0:08:44]} 10. e4 {[%emt 0:12:11]} Qc6 {[%emt 0:00:17]} 11. Rb1 {[%emt 0:01:33]} O-O {[%emt 0:03:36]} 12. Be2 {[%emt 0:01:17]} Nb3 {[%emt 0:05:20]} 13. Bf3 {[%emt 0:04:46]} Nxc1 {[%emt 0:02:03]} 14. Qxc1 {[%emt 0:02:08]} e5 {[%emt 0:01:26]} 15. d5 {[%emt 0:02:13]} Qc5 {[%emt 0:01:25]} 16. O-O {[%emt 0:03:11]} b5 {[%emt 0:05:44]} 17. a4 {[%emt 0:03:53]} a6 {[%emt 0:01:33]} 18. g3 {[%emt 0:03:46]} Bd7 {[%emt 0:02:48]} 19. Bg2 {[%emt 0:00:52]} Rfb8 {[%emt 0:07:06]} 20. a5 {[%emt 0:07:21]} Ne8 {[%emt 0:01:51]} 21. Kh1 {[%emt 0:01:18]} Nd6 {[%emt 0:00:23]} 22. f4 {[%emt 0:02:31]} f6 {[%emt 0:03:14]} 23. fxe5 {[%emt 0:03:53]} fxe5 {[%emt 0:00:37]} 24. Nf3 {[%emt 0:00:24]} Re8 {[%emt 0:01:06]} 25. Nh4 {[%emt 0:01:16]} c6 {[%emt 0:06:02]} 26. Qg5 {[%emt 0:05:10]} cxd5 {[%emt 0:00:36]} 27. exd5 {[%emt 0:01:57]} e4 {[%emt 0:00:21]} 28. g4 {[%emt 0:02:48]} e3 {[%emt 0:01:07]} 29. Nf5 {[%emt 0:01:21]} Bxf5 {[%emt 0:02:50]} 30. gxf5 {[%emt 0:00:09]} e2 {[%emt 0:00:32]} 31. Rfe1 {[%emt 0:03:18]} Qe3 {[%emt 0:00:06]} 32. Qg4 {[%emt 0:00:36]} Qxc3 {[%emt 0:01:26]} 33. Rxe2 {[%emt 0:00:50]} Rxe2 {[%emt 0:00:10]} 34. Qxe2 {[%emt 0:00:04]} Re8 {[%emt 0:00:07]} 35. Qf2 {[%emt 0:00:34]} Qe3 {[%emt 0:01:02]} 36. Qc2 {[%emt 0:03:16]} Rf8 {[%emt 0:02:27]} 37. Rf1 {[%emt 0:01:21]} Qe5 {[%emt 0:00:25]} 38. h3 {[%emt 0:02:05]} b4 {[%emt 0:01:52]} 39. Qd2 {[%emt 0:00:37]} b3 {[%emt 0:00:35]} 40. Re1 {[%emt 0:00:37]} c3 {[%emt 0:01:08]} 41. Qf2 {[%emt 0:30:30]} Qxf5 {[%emt 0:05:53]} 42. Qb6 {[%emt 0:00:00]} Qf2 {[%emt 0:06:39]} 0-1

[Event "Tirnavia Reti Memorial-IM 2022"]
[Site "Trnava"]
[Date "2022.08.18"]
[Round "9.10"]
[White "Petran, Peter"]
[Black "Skreno, Vladimir"]
[Result "1-0"]
[ECO "A03"]
[WhiteElo "2234"]
[BlackElo "2083"]
[Annotator "RC"]
[PlyCount "73"]
[EventDate "2022.08.10"]
[EventType "tourn"]
[EventCountry "SVK"]
[SourceTitle "playchess.com"]
[Source "ChessBase"]
[SourceQuality "1"]
[TimeControl "40/5400+30:1800+30"]

1. g3 {[%emt 0:00:13]} d5 {[%emt 0:00:18]} 2. Bg2 {[%emt 0:00:23]} Nf6 {[%emt 0:00:24]} 3. d3 {[%emt 0:00:15]} g6 {[%emt 0:01:39]} 4. f4 {[%emt 0:00:19]} Bg7 {[%emt 0:00:50]} 5. c3 {[%emt 0:00:06]} O-O {[%emt 0:01:39]} 6. Nh3 {[%emt 0:00:13]} c5 {[%emt 0:04:07]} 7. O-O {[%emt 0:00:13]} Nc6 {[%emt 0:00:32]} 8. Nf2 {[%emt 0:00:11]} e5 {[%emt 0:14:18]} 9. e4 {[%emt 0:00:12]} dxe4 {[%emt 0:06:36]} 10. dxe4 {[%emt 0:00:09]} Qxd1 {[%emt 0:03:24]} 11. Rxd1 {[%emt 0:00:06]} Re8 {[%emt 0:05:45]} 12. Na3 {[%emt 0:02:27]} Be6 {[%emt 0:07:51]} 13. Be3 {[%emt 0:00:21]} Bf8 {[%emt 0:00:55]} 14. h3 {[%emt 0:15:11]} a6 {[%emt 0:08:45]} 15. b3 {[%emt 0:01:14]} Rad8 {[%emt 0:06:45]} 16. Re1 {[%emt 0:05:51]} b5 {[%emt 0:04:04]} 17. f5 {[%emt 0:00:56]} Bc8 {[%emt 0:01:43]} 18. g4 {[%emt 0:00:22]} Bb7 {[%emt 0:09:14]} 19. Nc2 {[%emt 0:02:59]} b4 {[%emt 0:01:24]} 20. cxb4 {[%emt 0:00:23]} cxb4 {[%emt 0:04:03]} 21. Bg5 {[%emt 0:07:57]} Kg7 {[%emt 0:03:04]} 22. Rac1 {[%emt 0:07:10]} Rd7 {[%emt 0:01:41]} 23. h4 {[%emt 0:08:09]} Bc5 {[%emt 0:01:44]} 24. Ne3 {[%emt 0:00:46]} Bd4 {[%emt 0:03:46]} 25. Bh3 {[%emt 0:03:53]} Ng8 {[%emt 0:04:40]} 26. f6+ {[%emt 0:01:48]} Kf8 {[%emt 0:01:49]} 27. Nd5 {[%emt 0:00:15]} Ba7 {[%emt 0:01:05]} 28. Bd2 {[%emt 0:02:59]} a5 {[%emt 0:01:07]} 29. g5 {[%emt 0:00:17]} Rd6 {[%emt 0:00:35]} 30. Kg2 {[%emt 0:00:55]} Nd4 {[%emt 0:00:40]} 31. Nc7 {[%emt 0:02:16]} Red8 {[%emt 0:00:30]} 32. Be3 {[%emt 0:00:12]} Bb8 {[%emt 0:00:36]} 33. Red1 {[%emt 0:09:50]} h6 {[%emt 0:00:12]} 34. Rc5 {[%emt 0:04:45]} Ba7 {[%emt 0:00:31]} 35. Rxe5 {[%emt 0:02:22]} hxg5 {[%emt 0:00:12]} 36. hxg5 {[%emt 0:00:31]} Bb8 {[%emt 0:01:09]} 37. Bxd4 {[%emt 0:02:37]} 1-0